[Event "MCR rapid mládeže 2023 U16"]
[Site "Harachov, Czech Republic"]
[Date "2023.09.10"]
[Round "9.23"]
[White "Mojzisova, Barbora"]
[Black "Kratka, Tereza"]
[Result "0-1"]
[TimeControl "20min+5s/move"]
[WhiteElo "1220"]
[BlackElo "1147"]

1. e4 {[%clk 00:20:08]} {[%emt 00:00:01]} c5 {[%clk 00:20:09]} {[%emt
00:00:01]} 2. Nf3 {[%clk 00:20:12]} {[%emt 00:00:01]} Nc6 {[%clk 00:20:13]}
{[%emt 00:00:01]} 3. d4 {[%clk 00:20:16]} {[%emt 00:00:01]} cxd4 {[%clk
00:20:17]} {[%emt 00:00:01]} 4. Nxd4 {[%emt 00:00:02]} g6 {[%emt 00:00:01]} 5.
Nc3 {[%clk 00:20:17]} {[%emt 00:00:06]} Bg7 {[%clk 00:20:26]} {[%emt 00:00:02]}
6. Be3 {[%clk 00:20:17]} {[%emt 00:00:05]} Nf6 {[%clk 00:20:29]} {[%emt
00:00:01]} 7. Bc4 {[%clk 00:20:19]} {[%emt 00:00:03]} d6 {[%clk 00:20:33]}
{[%emt 00:00:01]} 8. f3 {[%clk 00:20:13]} {[%emt 00:00:11]} O-O {[%clk
00:20:25]} {[%emt 00:00:13]} 9. Qd2 {[%clk 00:20:14]} {[%emt 00:00:04]} a5
{[%clk 00:20:28]} {[%emt 00:00:03]} 10. Nxc6 {[%clk 00:19:52]} {[%emt
00:00:27]} bxc6 {[%clk 00:20:31]} {[%emt 00:00:01]} 11. Bh6 {[%clk 00:19:45]}
{[%emt 00:00:12]} Bb7 {[%clk 00:20:35]} {[%emt 00:00:02]} 12. Bxg7 {[%clk
00:19:13]} {[%emt 00:00:36]} Kxg7 {[%clk 00:20:39]} {[%emt 00:00:01]} 13. g4
{[%clk 00:19:00]} {[%emt 00:00:17]} h5 {[%clk 00:20:07]} {[%emt 00:00:38]} 14.
gxh5 {[%clk 00:18:26]} {[%emt 00:00:39]} Nxh5 {[%clk 00:20:10]} {[%emt
00:00:02]} 15. Rg1 {[%clk 00:18:08]} {[%emt 00:00:22]} e6 {[%clk 00:19:43]}
{[%emt 00:00:33]} 16. Qg2 {[%clk 00:16:43]} {[%emt 00:01:21]} Qh4+ {[%clk
00:19:47]} {[%emt 00:00:10]} 17. Kd1 {[%clk 00:16:13]} {[%emt 00:00:25]} Nf4
{[%clk 00:19:38]} {[%emt 00:00:24]} 18. Qd2 {[%clk 00:15:30]} {[%emt 00:00:32]}
d5 {[%clk 00:18:55]} {[%emt 00:01:05]} 19. exd5 {[%clk 00:14:49]} {[%emt
00:00:46]} cxd5 {[%clk 00:18:58]} {[%emt 00:00:01]} 20. Bb3 {[%clk 00:14:10]}
{[%emt 00:00:40]} Qf6 {[%clk 00:18:38]} {[%emt 00:00:30]} 21. Rg4 {[%clk
00:12:54]} {[%emt 00:01:10]} e5 {[%clk 00:18:41]} {[%emt 00:00:12]} 22. Ke1
{[%clk 00:11:52]} {[%emt 00:01:00]} d4 {[%clk 00:18:38]} {[%emt 00:00:15]} 23.
Ne4 {[%clk 00:11:10]} {[%emt 00:00:45]} Bxe4 {[%clk 00:18:26]} {[%emt
00:00:19]} 24. fxe4 {[%clk 00:11:13]} {[%emt 00:00:02]} Rh8 {[%clk 00:18:17]}
{[%emt 00:00:13]} 25. Qf2 {[%clk 00:10:22]} {[%emt 00:00:43]} Rh5 {[%clk
00:18:05]} {[%emt 00:00:31]} 26. Rd1 {[%clk 00:09:18]} {[%emt 00:01:09]} Rah8
{[%clk 00:18:06]} {[%emt 00:00:04]} 27. c3 {[%clk 00:08:29]} {[%emt 00:00:53]}
Rxh2 {[%clk 00:18:01]} {[%emt 00:00:11]} 28. Qg3 {[%clk 00:07:52]} {[%emt
00:00:34]} Nd3+ {[%clk 00:16:47]} {[%emt 00:01:27]} 29. Rxd3 {[%clk 00:07:24]}
{[%emt 00:00:33]} Rh1+ {[%clk 00:16:45]} {[%emt 00:00:07]} 30. Ke2 {[%clk
00:06:58]} {[%emt 00:00:31]} R8h2+ {[%clk 00:16:48]} {[%emt 00:00:02]} 31. Qg2
{[%clk 00:06:51]} {[%emt 00:00:11]} Rxg2+ {[%clk 00:16:52]} {[%emt 00:00:03]}
32. Rxg2 {[%clk 00:06:54]} {[%emt 00:00:02]} Qf1+ {[%clk 00:16:46]} {[%emt
00:00:11]} 33. Kd2 {[%clk 00:06:54]} {[%emt 00:00:03]} Qe1+ {[%clk 00:16:39]}
{[%emt 00:00:13]} 34. Kc2 {[%clk 00:06:53]} {[%emt 00:00:06]} Qc1# {[%clk
00:16:42]} {[%emt 00:00:02]} 0-1

[Event "MCR rapid mládeže 2023 U16"]
[Site "Harachov, Czech Republic"]
[Date "2023.09.10"]
[Round "9.24"]
[White "Nova, Anezka"]
[Black "Barteckova, Nikol"]
[Result "1-0"]
[TimeControl "20min+5s/move"]
[WhiteElo "1382"]
[BlackElo "1246"]

1. e4 {[%clk 00:20:29]} c5 {[%clk 00:20:29]} {[%emt 00:00:01]} 2. Nf3 {[%clk
00:20:32]} {[%emt 00:00:02]} e6 {[%clk 00:20:31]} {[%emt 00:00:04]} 3. c3
{[%clk 00:20:36]} {[%emt 00:00:01]} d6 {[%clk 00:20:22]} {[%emt 00:00:14]} 4.
d4 {[%clk 00:20:21]} {[%emt 00:00:19]} cxd4 5. cxd4 {[%clk 00:20:25]} Nc6
{[%clk 00:20:08]} {[%emt 00:00:22]} 6. Nc3 {[%clk 00:20:12]} {[%emt 00:00:18]}
Nf6 {[%clk 00:20:09]} {[%emt 00:00:04]} 7. Bg5 {[%clk 00:19:49]} {[%emt
00:00:28]} Be7 {[%clk 00:20:11]} {[%emt 00:00:02]} 8. Bb5 {[%clk 00:19:27]}
{[%emt 00:00:28]} Bd7 {[%clk 00:20:15]} {[%emt 00:00:02]} 9. O-O {[%clk
00:19:21]} {[%emt 00:00:10]} a6 {[%clk 00:20:11]} {[%emt 00:00:10]} 10. Ba4
{[%clk 00:18:41]} {[%emt 00:00:45]} b5 {[%clk 00:20:11]} {[%emt 00:00:05]} 11.
Bc2 {[%clk 00:18:11]} {[%emt 00:00:35]} O-O {[%clk 00:20:05]} {[%emt 00:00:11]}
12. a3 {[%clk 00:17:32]} {[%emt 00:00:44]} Bc8 {[%clk 00:19:18]} {[%emt
00:00:52]} 13. Qd3 {[%clk 00:17:23]} {[%emt 00:00:13]} g6 {[%clk 00:16:46]}
{[%emt 00:02:37]} 14. e5 {[%clk 00:14:39]} {[%emt 00:02:50]} dxe5 {[%clk
00:16:09]} {[%emt 00:00:41]} 15. dxe5 {[%clk 00:14:38]} {[%emt 00:00:06]} Qxd3
{[%clk 00:15:51]} {[%emt 00:00:23]} 16. Bxd3 {[%clk 00:14:41]} {[%emt
00:00:02]} Nd7 {[%clk 00:15:14]} {[%emt 00:00:42]} 17. Be4 {[%clk 00:13:58]}
{[%emt 00:00:49]} Bxg5 {[%clk 00:14:20]} {[%emt 00:00:58]} 18. Bxc6 {[%clk
00:13:54]} {[%emt 00:00:09]} Ra7 {[%clk 00:13:54]} {[%emt 00:00:31]} 19. Bxd7
{[%clk 00:13:22]} {[%emt 00:00:37]} Rxd7 {[%clk 00:13:42]} {[%emt 00:00:18]} 20.
Nxg5 {[%clk 00:13:24]} {[%emt 00:00:03]} Bb7 {[%clk 00:13:46]} {[%emt
00:00:01]} 21. Rfd1 {[%clk 00:12:53]} {[%emt 00:00:35]} Rfd8 {[%clk 00:13:39]}
{[%emt 00:00:12]} 22. Rxd7 {[%clk 00:12:45]} {[%emt 00:00:14]} Rxd7 {[%clk
00:13:42]} {[%emt 00:00:01]} 23. Rd1 {[%clk 00:12:43]} {[%emt 00:00:06]} Rc7
{[%clk 00:13:29]} {[%emt 00:00:19]} 24. Kf1 {[%clk 00:11:46]} {[%emt 00:01:03]}
h6 {[%clk 00:13:23]} {[%emt 00:00:10]} 25. Nge4 {[%clk 00:11:25]} {[%emt
00:00:25]} Bxe4 {[%clk 00:13:12]} {[%emt 00:00:17]} 26. Nxe4 {[%clk 00:11:29]}
{[%emt 00:00:01]} Rc2 {[%clk 00:13:15]} {[%emt 00:00:02]} 27. Rd6 {[%clk
00:10:51]} {[%emt 00:00:41]} Rxb2 {[%clk 00:13:07]} {[%emt 00:00:15]} 28. Rxa6
{[%clk 00:10:54]} {[%emt 00:00:03]} Rb3 {[%clk 00:12:59]} {[%emt 00:00:11]} 29.
Nd6 {[%clk 00:10:11]} {[%emt 00:00:50]} Rb1+ {[%clk 00:12:52]} {[%emt
00:00:11]} 30. Ke2 {[%clk 00:10:14]} {[%emt 00:00:02]} Rb2+ {[%clk 00:12:44]}
{[%emt 00:00:12]} 31. Kf3 {[%clk 00:10:12]} {[%emt 00:00:08]} Rb3+ {[%clk
00:12:48]} {[%emt 00:00:01]} 32. Kg4 {[%clk 00:09:04]} {[%emt 00:01:11]} h5+
{[%clk 00:12:46]} {[%emt 00:00:08]} 33. Kg5 {[%clk 00:08:45]} {[%emt 00:00:21]}
Rb2 {[%clk 00:12:43]} {[%emt 00:00:11]} 34. Ne4 {[%clk 00:08:36]} {[%emt
00:00:10]} Kg7 {[%clk 00:12:30]} {[%emt 00:00:21]} 35. Ra8 {[%clk 00:08:28]}
{[%emt 00:00:13]} Re2 {[%clk 00:12:25]} {[%emt 00:00:11]} 36. Kf4 {[%clk
00:07:49]} {[%emt 00:00:38]} Rb2 {[%clk 00:12:18]} {[%emt 00:00:15]} 37. g3
{[%clk 00:07:00]} {[%emt 00:00:58]} Ra2 {[%clk 00:11:14]} {[%emt 00:01:07]} 38.
Kg5 {[%clk 00:06:23]} {[%emt 00:00:42]} Re2 {[%clk 00:11:13]} {[%emt 00:00:07]}
39. f3 {[%clk 00:06:14]} {[%emt 00:00:11]} Re3 {[%clk 00:10:40]} {[%emt
00:00:38]} 40. Kf4 {[%clk 00:05:20]} {[%emt 00:00:59]} Rd3 {[%clk 00:10:05]}
{[%emt 00:00:31]} 41. Ra5 {[%clk 00:04:46]} {[%emt 00:00:48]} Rb3 {[%clk
00:09:52]} {[%emt 00:00:14]} 42. Nd6 {[%clk 00:04:18]} {[%emt 00:00:39]} b4
{[%clk 00:09:42]} {[%emt 00:00:16]} 43. axb4 {[%clk 00:04:01]} {[%emt
00:00:22]} Rxb4+ {[%clk 00:09:46]} {[%emt 00:00:02]} 44. Kg5 {[%clk 00:03:59]}
{[%emt 00:00:05]} Rb3 {[%clk 00:09:37]} {[%emt 00:00:15]} 45. f4 {[%clk
00:03:55]} {[%emt 00:00:06]} Rd3 {[%clk 00:08:55]} {[%emt 00:00:42]} 46. Ra7
{[%clk 00:03:49]} {[%emt 00:00:20]} Kg8 {[%clk 00:08:49]} {[%emt 00:00:07]} 47.
Kh6 {[%clk 00:03:34]} {[%emt 00:00:19]} Kf8 {[%clk 00:08:24]} {[%emt 00:00:34]}
48. Rxf7+ {[%clk 00:03:21]} {[%emt 00:00:18]} Kg8 {[%clk 00:08:23]} {[%emt
00:00:02]} 49. Re7 {[%clk 00:03:10]} {[%emt 00:00:19]} Re3 {[%clk 00:08:10]}
{[%emt 00:00:18]} 50. Re8# {[%clk 00:03:11]} {[%emt 00:00:05]} 1-0

[Event "MCR rapid mládeže 2023 U16"]
[Site "Harachov, Czech Republic"]
[Date "2023.09.10"]
[Round "9.25"]
[White "Stepankova, Linda"]
[Black "Kusova, Nikola"]
[Result "1-0"]
[TimeControl "20min+5s/move"]
[WhiteElo "1124"]
[BlackElo "1247"]

1. e4 {[%clk 00:20:09]} {[%emt 00:00:01]} e5 {[%clk 00:20:09]} {[%emt
00:00:01]} 2. Nf3 {[%clk 00:20:12]} {[%emt 00:00:02]} Nf6 {[%clk 00:20:12]}
{[%emt 00:00:01]} 3. Nxe5 {[%clk 00:20:15]} {[%emt 00:00:02]} d6 {[%clk
00:20:16]} {[%emt 00:00:02]} 4. Nf3 {[%clk 00:20:14]} {[%emt 00:00:06]} Nxe4
{[%clk 00:20:19]} {[%emt 00:00:01]} 5. d3 {[%clk 00:19:32]} {[%emt 00:00:47]}
Nf6 {[%clk 00:20:23]} {[%emt 00:00:02]} 6. Nc3 {[%clk 00:19:34]} {[%emt
00:00:02]} d5 {[%clk 00:20:23]} {[%emt 00:00:05]} 7. d4 {[%clk 00:19:18]}
{[%emt 00:00:21]} Nc6 {[%clk 00:20:04]} {[%emt 00:00:25]} 8. Bb5 {[%clk
00:18:51]} {[%emt 00:00:32]} Bd7 {[%clk 00:19:03]} {[%emt 00:01:06]} 9. O-O
{[%clk 00:18:24]} {[%emt 00:00:31]} Be7 {[%clk 00:19:00]} {[%emt 00:00:09]} 10.
Ne5 {[%clk 00:15:56]} {[%emt 00:02:32]} Nxe5 {[%clk 00:18:03]} {[%emt
00:01:02]} 11. dxe5 {[%clk 00:15:56]} {[%emt 00:00:06]} Ng4 {[%clk 00:16:36]}
{[%emt 00:01:28]} 12. Qxg4 {[%clk 00:14:53]} {[%emt 00:01:11]} Bxb5 {[%clk
00:14:47]} {[%emt 00:01:54]} 13. Nxb5 {[%clk 00:12:16]} {[%emt 00:02:43]} g6
{[%clk 00:13:35]} {[%emt 00:01:17]} 14. Be3 {[%clk 00:09:36]} {[%emt 00:02:44]}
c6 {[%clk 00:12:14]} {[%emt 00:01:26]} 15. Nc3 {[%clk 00:08:16]} {[%emt
00:01:25]} h5 {[%clk 00:11:20]} {[%emt 00:00:58]} 16. Qd4 {[%clk 00:06:47]}
{[%emt 00:01:35]} b6 {[%clk 00:09:59]} {[%emt 00:01:27]} 17. Qa4 {[%clk
00:04:47]} {[%emt 00:02:04]} b5 {[%clk 00:09:09]} {[%emt 00:00:55]} 18. Qd4
{[%clk 00:04:35]} {[%emt 00:00:17]} Qd7 {[%clk 00:07:15]} {[%emt 00:01:59]} 19.
Rad1 {[%emt 00:01:09]} b4 {[%clk 00:05:12]} {[%emt 00:02:05]} 20. Ne2 {[%clk
00:03:07]} {[%emt 00:00:32]} Qf5 {[%clk 00:04:10]} {[%emt 00:01:04]} 21. Qd3
{[%clk 00:02:30]} {[%emt 00:00:46]} Qd7 {[%clk 00:02:52]} {[%emt 00:01:21]} 22.
c3 {[%clk 00:02:09]} {[%emt 00:00:28]} Qb7 {[%clk 00:01:26]} {[%emt 00:01:29]}
23. cxb4 {[%clk 00:01:56]} {[%emt 00:00:20]} Qxb4 {[%clk 00:01:25]} {[%emt
00:00:05]} 24. Bd4 {[%clk 00:01:13]} {[%emt 00:00:48]} O-O {[%clk 00:00:39]}
{[%emt 00:00:51]} 25. Bc3 {[%clk 00:01:11]} {[%emt 00:00:08]} Qb7 {[%clk
00:00:34]} {[%emt 00:00:09]} 26. Rfe1 {[%clk 00:01:03]} {[%emt 00:00:14]} Rad8
{[%clk 00:00:31]} {[%emt 00:00:08]} 27. Qf3 {[%clk 00:00:49]} {[%emt 00:00:18]}
Bb4 {[%clk 00:00:17]} {[%emt 00:00:19]} 28. Bxb4 {[%clk 00:00:49]} {[%emt
00:00:06]} Qxb4 {[%clk 00:00:20]} {[%emt 00:00:01]} 29. Qb3 {[%clk 00:00:44]}
{[%emt 00:00:09]} Qe7 {[%clk 00:00:18]} {[%emt 00:00:08]} 30. Ng3 {[%clk
00:00:34]} {[%emt 00:00:16]} Rb8 {[%clk 00:00:17]} {[%emt 00:00:06]} 31. Qc3
{[%clk 00:00:37]} {[%emt 00:00:02]} Rb6 {[%clk 00:00:16]} {[%emt 00:00:06]} 32.
h3 {[%clk 00:00:35]} {[%emt 00:00:07]} h4 {[%clk 00:00:17]} {[%emt 00:00:04]}
33. Nf1 {[%clk 00:00:38]} {[%emt 00:00:02]} Rfb8 {[%clk 00:00:18]} {[%emt
00:00:04]} 34. b3 {[%clk 00:00:39]} {[%emt 00:00:03]} R8b7 {[%clk 00:00:10]}
{[%emt 00:00:13]} 35. Qc2 {[%clk 00:00:42]} {[%emt 00:00:02]} Rb8 {[%clk
00:00:14]} {[%emt 00:00:02]} 36. Qe2 {[%clk 00:00:36]} {[%emt 00:00:11]} Re8
{[%clk 00:00:11]} {[%emt 00:00:07]} 37. Qc2 {[%clk 00:00:30]} {[%emt 00:00:11]}
Ra6 {[%clk 00:00:09]} {[%emt 00:00:08]} 38. Qb2 {[%clk 00:00:24]} {[%emt
00:00:10]} Rb6 {[%clk 00:00:10]} {[%emt 00:00:04]} 39. Qc2 {[%clk 00:00:28]}
{[%emt 00:00:01]} Ra6 {[%clk 00:00:14]} {[%emt 00:00:02]} 40. Re2 {[%clk
00:00:28]} {[%emt 00:00:04]} Qc7 {[%clk 00:00:09]} {[%emt 00:00:10]} 41. Rde1
{[%clk 00:00:31]} {[%emt 00:00:02]} Rb6 {[%clk 00:00:09]} {[%emt 00:00:06]} 42.
Qc5 {[%clk 00:00:21]} {[%emt 00:00:14]} Rxe5 {[%clk 00:00:09]} {[%emt
00:00:05]} 43. Rxe5 {[%clk 00:00:22]} {[%emt 00:00:04]} Rb5 {[%clk 00:00:12]}
{[%emt 00:00:03]} 44. Qc2 {[%clk 00:00:24]} {[%emt 00:00:03]} Ra5 {[%clk
00:00:15]} {[%emt 00:00:02]} 45. Re8+ {[%clk 00:00:27]} {[%emt 00:00:02]} Kg7
{[%clk 00:00:19]} {[%emt 00:00:01]} 46. R8e7 {[%clk 00:00:27]} {[%emt
00:00:05]} Qd6 {[%clk 00:00:13]} {[%emt 00:00:11]} 47. Qc3+ {[%clk 00:00:28]}
{[%emt 00:00:04]} 1-0

[Event "MCR rapid mládeže 2023 U16"]
[Site "Harachov, Czech Republic"]
[Date "2023.09.10"]
[Round "9.26"]
[White "Hujova, Tess"]
[Black "Vancakova, Veronika"]
[Result "0-1"]
[TimeControl "20min+5s/move"]
[WhiteElo "1104"]
[BlackElo "1433"]

1. e4 {[%clk 00:20:08]} {[%emt 00:00:01]} d6 {[%clk 00:20:10]} {[%emt
00:00:01]} 2. d4 {[%clk 00:20:10]} {[%emt 00:00:03]} Nf6 {[%clk 00:20:14]}
{[%emt 00:00:01]} 3. Nc3 {[%clk 00:20:11]} {[%emt 00:00:03]} g6 {[%clk
00:20:17]} {[%emt 00:00:02]} 4. Bg5 {[%clk 00:20:07]} {[%emt 00:00:08]} Bg7
{[%clk 00:19:48]} {[%emt 00:00:35]} 5. Nf3 {[%clk 00:20:05]} {[%emt 00:00:07]}
O-O {[%clk 00:19:50]} {[%emt 00:00:03]} 6. Bd3 {[%clk 00:20:00]} {[%emt
00:00:10]} Nc6 {[%clk 00:19:26]} {[%emt 00:00:29]} 7. d5 {[%emt 00:00:33]} Nb8
{[%clk 00:19:08]} {[%emt 00:00:15]} 8. O-O {[%clk 00:19:15]} {[%emt 00:00:29]}
h6 {[%clk 00:19:05]} {[%emt 00:00:09]} 9. Be3 {[%clk 00:19:09]} {[%emt
00:00:10]} e5 {[%clk 00:18:42]} {[%emt 00:00:28]} 10. Qd2 {[%clk 00:18:37]}
{[%emt 00:00:37]} Ng4 {[%clk 00:18:35]} {[%emt 00:00:12]} 11. h3 {[%clk
00:18:15]} {[%emt 00:00:27]} Nxe3 {[%clk 00:18:36]} {[%emt 00:00:05]} 12. Qxe3
{[%clk 00:18:13]} {[%emt 00:00:06]} f5 {[%clk 00:18:20]} {[%emt 00:00:21]} 13.
Qe2 {[%clk 00:16:58]} {[%emt 00:01:19]} f4 {[%clk 00:18:15]} {[%emt 00:00:11]}
14. Bc4 {[%clk 00:16:04]} {[%emt 00:00:59]} Nd7 {[%clk 00:17:59]} {[%emt
00:00:22]} 15. Bb3 {[%clk 00:15:40]} {[%emt 00:00:28]} Kh7 {[%clk 00:17:05]}
{[%emt 00:01:00]} 16. Rad1 {[%clk 00:14:57]} {[%emt 00:00:47]} g5 {[%clk
00:15:54]} {[%emt 00:01:16]} 17. Rfe1 {[%clk 00:13:38]} {[%emt 00:01:23]} Rf6
{[%clk 00:15:08]} {[%emt 00:00:52]} 18. Kf1 {[%clk 00:12:57]} {[%emt 00:00:45]}
Rg6 {[%clk 00:14:55]} {[%emt 00:00:19]} 19. Nh2 {[%clk 00:12:32]} {[%emt
00:00:30]} Nf6 {[%clk 00:13:57]} {[%emt 00:01:03]} 20. f3 {[%clk 00:12:00]}
{[%emt 00:00:36]} h5 {[%clk 00:13:53]} {[%emt 00:00:10]} 21. Rd2 {[%clk
00:10:38]} {[%emt 00:01:27]} g4 {[%clk 00:13:05]} {[%emt 00:00:53]} 22. fxg4
{[%clk 00:08:33]} {[%emt 00:02:10]} hxg4 {[%clk 00:13:01]} {[%emt 00:00:09]} 23.
hxg4 {[%clk 00:08:07]} {[%emt 00:00:31]} Nxg4 {[%clk 00:12:05]} {[%emt
00:01:01]} 24. Nxg4 {[%clk 00:07:49]} {[%emt 00:00:22]} Bxg4 {[%clk 00:12:07]}
{[%emt 00:00:03]} 25. Qf2 {[%clk 00:07:41]} {[%emt 00:00:13]} Qg5 {[%clk
00:11:30]} {[%emt 00:00:43]} 26. Ne2 {[%clk 00:05:32]} {[%emt 00:02:13]} f3
{[%clk 00:10:38]} {[%emt 00:00:58]} 27. Ng3 {[%clk 00:05:02]} {[%emt 00:00:35]}
Rf8 {[%clk 00:08:14]} {[%emt 00:02:29]} 28. Kg1 {[%clk 00:03:30]} {[%emt
00:01:37]} Rf4 {[%clk 00:05:23]} {[%emt 00:02:56]} 29. Qe3 {[%clk 00:02:08]}
{[%emt 00:01:26]} fxg2 {[%clk 00:03:51]} {[%emt 00:01:38]} 30. Nf5 {[%clk
00:00:43]} {[%emt 00:01:30]} Bf3 {[%clk 00:02:02]} {[%emt 00:01:55]} 31. c3
{[%clk 00:00:26]} {[%emt 00:00:21]} Qh5 {[%clk 00:01:31]} {[%emt 00:00:36]} 32.
Rc1 {[%clk 00:00:12]} {[%emt 00:00:20]} Qh1+ {[%clk 00:01:21]} {[%emt
00:00:13]} 33. Kf2 {[%clk 00:00:14]} {[%emt 00:00:03]} g1=Q+ {[%clk 00:01:15]}
{[%emt 00:00:12]} 34. Rxg1 {[%clk 00:00:08]} {[%emt 00:00:10]} Qxg1# {[%clk
00:01:14]} {[%emt 00:00:07]} 0-1

[Event "MCR rapid mládeže 2023 U16"]
[Site "Harachov, Czech Republic"]
[Date "2023.09.10"]
[Round "9.27"]
[White "Jakubse, Tamae Severina"]
[Black "Lackova, Lucie"]
[Result "1/2-1/2"]
[TimeControl "20min+5s/move"]
[WhiteElo "1223"]
[BlackElo "1544"]

1. e4 {[%clk 00:20:08]} {[%emt 00:00:01]} c6 {[%clk 00:20:07]} {[%emt
00:00:04]} 2. d4 {[%clk 00:20:10]} {[%emt 00:00:02]} d5 {[%clk 00:20:10]}
{[%emt 00:00:02]} 3. exd5 {[%clk 00:20:13]} {[%emt 00:00:02]} cxd5 {[%clk
00:20:14]} {[%emt 00:00:01]} 4. c4 {[%clk 00:20:16]} {[%emt 00:00:01]} dxc4
{[%clk 00:20:05]} {[%emt 00:00:14]} 5. Bxc4 {[%clk 00:20:17]} {[%emt 00:00:04]}
Nf6 {[%clk 00:20:00]} {[%emt 00:00:10]} 6. Nc3 {[%clk 00:20:06]} {[%emt
00:00:16]} e6 {[%clk 00:19:45]} {[%emt 00:00:20]} 7. Nf3 {[%clk 00:20:04]}
{[%emt 00:00:07]} Be7 {[%clk 00:19:41]} {[%emt 00:00:10]} 8. O-O {[%clk
00:19:50]} {[%emt 00:00:18]} O-O {[%clk 00:19:37]} {[%emt 00:00:10]} 9. Bf4
{[%clk 00:19:22]} {[%emt 00:00:32]} Nc6 {[%clk 00:19:22]} {[%emt 00:00:21]} 10.
Qd2 {[%clk 00:16:51]} {[%emt 00:02:35]} Bd7 {[%clk 00:17:53]} {[%emt 00:01:34]}
11. Rfd1 {[%clk 00:16:15]} {[%emt 00:00:40]} Qb6 {[%clk 00:15:50]} {[%emt
00:02:06]} 12. Bg3 {[%clk 00:13:36]} {[%emt 00:02:46]} Bb4 {[%clk 00:13:34]}
{[%emt 00:02:22]} 13. a3 {[%clk 00:12:51]} {[%emt 00:00:50]} Bxc3 {[%clk
00:12:34]} {[%emt 00:01:05]} 14. bxc3 {[%clk 00:12:21]} {[%emt 00:00:35]} Qd8
{[%clk 00:12:18]} {[%emt 00:00:21]} 15. Rab1 {[%clk 00:11:24]} {[%emt
00:01:01]} b6 {[%clk 00:11:57]} {[%emt 00:00:26]} 16. Bh4 {[%clk 00:09:34]}
{[%emt 00:01:56]} Bc8 {[%clk 00:11:16]} {[%emt 00:00:45]} 17. Qe2 {[%clk
00:08:46]} {[%emt 00:00:52]} Bb7 {[%clk 00:10:10]} {[%emt 00:01:12]} 18. Ne5
{[%clk 00:08:18]} {[%emt 00:00:33]} Rc8 {[%clk 00:07:40]} {[%emt 00:02:36]} 19.
Ba6 {[%clk 00:07:21]} {[%emt 00:01:01]} Bxa6 {[%clk 00:07:13]} {[%emt
00:00:32]} 20. Qxa6 {[%clk 00:07:24]} {[%emt 00:00:03]} Qc7 {[%clk 00:06:34]}
{[%emt 00:00:43]} 21. Bxf6 {[%clk 00:05:56]} {[%emt 00:01:33]} gxf6 {[%clk
00:06:34]} {[%emt 00:00:05]} 22. Ng4 {[%clk 00:05:09]} {[%emt 00:00:52]} Kg7
{[%clk 00:06:04]} {[%emt 00:00:36]} 23. Qe2 {[%clk 00:04:12]} {[%emt 00:01:01]}
f5 {[%clk 00:04:42]} {[%emt 00:01:28]} 24. Ne3 {[%clk 00:04:00]} {[%emt
00:00:17]} Ne7 {[%clk 00:04:30]} {[%emt 00:00:17]} 25. Rbc1 {[%clk 00:03:32]}
{[%emt 00:00:33]} Kh8 {[%clk 00:03:52]} {[%emt 00:00:43]} 26. Rd3 {[%clk
00:03:00]} {[%emt 00:00:36]} Ng6 {[%clk 00:03:30]} {[%emt 00:00:27]} 27. g3
{[%clk 00:02:23]} {[%emt 00:00:43]} Rg8 {[%clk 00:03:12]} {[%emt 00:00:23]} 28.
Qh5 {[%clk 00:02:10]} {[%emt 00:00:16]} Nf4 {[%clk 00:02:45]} {[%emt 00:00:33]}
29. Qd1 {[%clk 00:02:01]} {[%emt 00:00:15]} Nxd3 {[%clk 00:02:42]} {[%emt
00:00:08]} 30. Qxd3 {[%clk 00:02:03]} {[%emt 00:00:02]} Qe7 {[%clk 00:02:18]}
{[%emt 00:00:27]} 31. d5 {[%clk 00:01:52]} {[%emt 00:00:18]} exd5 {[%clk
00:01:45]} {[%emt 00:00:39]} 32. Nxf5 {[%clk 00:01:40]} {[%emt 00:00:17]} Qg5
{[%clk 00:01:01]} {[%emt 00:00:48]} 33. Re1 {[%clk 00:01:24]} {[%emt 00:00:21]}
Rce8 {[%clk 00:00:46]} {[%emt 00:00:21]} 34. Rxe8 {[%clk 00:00:53]} {[%emt
00:00:36]} Rxe8 {[%clk 00:00:50]} {[%emt 00:00:01]} 35. Qd4+ {[%clk 00:00:55]}
{[%emt 00:00:02]} f6 {[%clk 00:00:53]} {[%emt 00:00:03]} 36. Nd6 {[%clk
00:00:52]} {[%emt 00:00:07]} Re1+ {[%clk 00:00:49]} {[%emt 00:00:09]} 37. Kg2
{[%clk 00:00:55]} {[%emt 00:00:02]} Qg8 {[%clk 00:00:47]} {[%emt 00:00:07]} 38.
Qxf6+ {[%clk 00:00:56]} {[%emt 00:00:04]} Qg7 {[%clk 00:00:49]} {[%emt
00:00:04]} 39. Qd8+ {[%clk 00:00:49]} {[%emt 00:00:12]} Qg8 {[%clk 00:00:51]}
{[%emt 00:00:02]} 40. Qf6+ {[%clk 00:00:39]} {[%emt 00:00:16]} Qg7 {[%clk
00:00:55]} {[%emt 00:00:01]} 41. Qd8+ {[%clk 00:00:40]} {[%emt 00:00:03]} Qg8
{[%clk 00:00:59]} 42. Qf6+ {[%clk 00:00:37]} {[%emt 00:00:09]} Qg7 {[%clk
00:01:03]} {[%emt 00:00:01]} 43. Qd8+ {[%clk 00:00:39]} {[%emt 00:00:03]} Qg8
{[%clk 00:01:07]} {[%emt 00:00:02]} 44. Qf6+ {[%clk 00:00:29]} {[%emt
00:00:14]} 1/2-1/2